fUSD/lending_fUSD_20240105
["ID","MTS","AMOUNT","RATE_DAILY","PERIOD"]
[310258691,1704424311361,-527.86534596,0.00038082,3]
[310258692,1704424311371,-228.16290157,0.00038082,3]
[310258693,1704424311380,-500.0,0.00038082,3]
[310258694,1704424311390,-500.0,0.00038082,3]
[310258695,1704424311399,-500.0,0.00038082,3]
[310258696,1704424311410,-593.83,0.00038082,3]
[310258697,1704424311420,-3647.06,0.00038082,3]
[310258698,1704424311429,-244.64927745,0.00038082,3]
[310258699,1704424311439,-523.05,0.00038082,3]
[310258700,1704424311449,-569.6,0.00038082,3]
[310258701,1704424311459,-500.0,0.00038082,3]
[310258702,1704424311471,-1578.13,0.00038082,3]
[310258703,1704424311481,-869.26,0.00038082,3]
[310258704,1704424311491,-601.34,0.00038082,3]
[310258705,1704424311502,-602.04,0.00038082,3]
[310258706,1704424311511,-500.0,0.00038082,3]
[310258707,1704424311521,-524.46405489,0.00038082,3]
[310258708,1704424311531,-559.1,0.00038082,3]
[310258709,1704424311541,-171.60017661,0.00038082,3]
[310258710,1704424311551,-500.0,0.00038082,3]
[310258711,1704424311561,-639.774433,0.00038082,3]
[310258712,1704424311571,-500.0,0.00038082,3]
[310258713,1704424311581,-500.0,0.00038082,3]
[310258714,1704424311591,-4769.97,0.00038082,3]
[310258715,1704424311601,-500.0,0.00038082,3]
[310258716,1704424311611,-565.17,0.00038082,3]
[310258717,1704424311624,-500.0,0.00038082,3]
[310258718,1704424311634,-2681.68,0.00038082,3]
[310258719,1704424311645,-3006.36,0.00038082,3]
[310258720,1704424311655,-774.17,0.00038082,3]
[310258721,1704424311666,-500.0,0.00038082,3]
[310258722,1704424311676,-500.0,0.00038082,3]
[310258723,1704424311686,-776.16,0.00038082,3]
[310258724,1704424311696,-1909.11,0.00038082,3]
[310258725,1704424311706,-1238.67,0.00038082,3]
[310258726,1704424311716,-529.17,0.00038082,3]
[310258727,1704424311726,-3090.15,0.00038082,3]
[310258728,1704424311735,-500.0,0.00038082,3]
[310258729,1704424311746,-5012.71,0.00038082,3]
[310258730,1704424311755,-500.0,0.00038082,3]
[310258731,1704424311765,-1857.63,0.00038082,3]
[310258732,1704424311775,-4528.66,0.00038082,3]
[310258733,1704424311785,-704.83,0.00038082,3]
[310258734,1704424311794,-1953.12,0.00038082,3]
[310258735,1704424311804,-2812.81,0.00038082,3]
[310258736,1704424311813,-497.0602532,0.00038082,3]
[310258737,1704424311823,-778.9,0.00038082,3]
[310258738,1704424311835,-1569.53,0.00038082,3]
[310258739,1704424311851,-1388.55,0.00038082,3]
[310258740,1704424311861,-500.0,0.00038082,3]
[310258741,1704424311872,-500.0,0.00038082,3]
[310258742,1704424311883,-500.0,0.00038082,3]
[310258743,1704424311892,-971.61,0.00038082,3]
[310258744,1704424311905,-2118.07,0.00038082,3]
[310258745,1704424311915,-1026.23,0.00038082,3]
[310258746,1704424311927,-500.0,0.00038082,3]
[310258747,1704424311937,-528.77,0.00038082,3]
[310258748,1704424311950,-747.51,0.00038082,3]
[310258749,1704424311959,-500.0,0.00038082,3]
[310258750,1704424311968,-500.0,0.00038082,3]
[310258751,1704424311979,-1256.48,0.00038082,3]
[310258752,1704424311989,-1231.35,0.00038082,3]
[310258753,1704424311998,-2582.67,0.00038082,3]
[310258754,1704424312008,-1321.69,0.00038082,3]
[310258755,1704424312018,-985.31,0.00038082,3]
[310258756,1704424312028,-500.0,0.00038082,3]
[310258757,1704424312040,-804.83,0.00038082,3]
[310258758,1704424312049,-672.09,0.00038082,3]
[310258759,1704424312059,-500.0,0.00038082,3]
[310258760,1704424312069,-500.0,0.00038082,3]
[310258761,1704424312079,-1836.89,0.00038082,3]
[310258762,1704424312088,-500.0,0.00038082,3]
[310258763,1704424312097,-1010.49,0.00038082,3]
[310258764,1704424312106,-546.06809297,0.00038082,3]
[310258765,1704424312116,-762.87,0.00038082,3]
[310258766,1704424312126,-500.0,0.00038082,3]
[310258767,1704424312136,-786.79,0.00038082,3]
[310258768,1704424312146,-512.2823916,0.00038082,3]
[310258769,1704424312156,-5862.64,0.00038082,3]
[310258770,1704424312166,-934.12,0.00038082,3]
[310258771,1704424312175,-1785.52,0.00038082,3]
[310258772,1704424312186,-500.0,0.00038082,3]
[310258773,1704424312195,-912.64,0.00038082,3]
[310258774,1704424312205,-808.85,0.00038082,3]
[310258775,1704424312214,-882.36,0.00038082,3]
[310258776,1704424312225,-1259.24,0.00038082,3]
[310258777,1704424312236,-13869.62,0.00038082,3]
[310258778,1704424312246,-500.0,0.00038082,3]
[310258779,1704424312257,-500.0,0.00038082,3]
[310258780,1704424312267,-3101.88,0.00038082,3]
[310258781,1704424312277,-1091.42,0.00038082,3]
[310258782,1704424312287,-785.92,0.00038082,3]
[310258783,1704424312297,-586.04,0.00038082,3]
[310258784,1704424312307,-500.0,0.00038082,3]
[310258785,1704424312317,-1268.16,0.00038082,3]
[310258786,1704424312326,-1189.46,0.00038082,3]
[310258787,1704424312335,-606.27,0.00038082,3]
[310258788,1704424312347,-593.38,0.00038082,3]
[310258789,1704424312357,-1481.99,0.00038082,3]
[310258790,1704424312367,-500.0,0.00038082,3]
[310258791,1704424312377,-500.0,0.00038082,3]
[310258792,1704424312387,-1085.76,0.00038082,3]
[310258793,1704424312397,-1106.51,0.00038082,3]
[310258794,1704424312407,-500.0,0.00038082,3]
[310258795,1704424312416,-1351.81,0.00038082,3]
[310258796,1704424312426,-500.0,0.00038082,3]
[310258797,1704424312436,-500.0,0.00038082,3]
[310258798,1704424312446,-545.65,0.00038082,3]
[310258799,1704424312456,-765.09,0.00038082,3]
[310258800,1704424312467,-537.24,0.00038082,3]
[310258801,1704424312476,-1151.66,0.00038082,3]
[310258802,1704424312486,-500.0,0.00038082,3]
[310258803,1704424312496,-779.5,0.00038082,3]
[310258804,1704424312506,-1306.66,0.00038082,3]
[310258805,1704424312516,-572.88,0.00038082,3]
[310258806,1704424312525,-500.0,0.00038082,3]
[310258807,1704424312535,-500.0,0.00038082,3]
[310258808,1704424312546,-418.78353016,0.00038082,3]
[310258809,1704424312556,-500.0,0.00038082,3]
[310258810,1704424312567,-8188.31,0.00038082,3]
[310258811,1704424312577,-500.0,0.00038082,3]
[310258812,1704424312587,-1063.95,0.00038082,3]
[310258813,1704424312597,-798.53,0.00038082,3]
[310258814,1704424312608,-528.36,0.00038082,3]
[310258815,1704424312617,-500.0,0.00038082,3]
[310258816,1704424312628,-920.16,0.00038082,3]
[310258817,1704424312638,-500.0,0.00038082,3]
[310258818,1704424312648,-500.0,0.00038082,3]
[310258819,1704424312658,-663.44,0.00038082,3]
[310258820,1704424312667,-1622.28,0.00038082,3]
[310258821,1704424312677,-500.0,0.00038082,3]
[310258822,1704424312687,-711.28,0.00038082,3]
[310258823,1704424312697,-500.0,0.00038082,3]
[310258824,1704424312707,-502.3,0.00038082,3]
[310258825,1704424312717,-2080.27,0.00038082,3]
[310258826,1704424312726,-835.35,0.00038082,3]
[310258827,1704424312736,-500.0,0.00038082,3]
[310258828,1704424312748,-500.0,0.00038082,3]
[310258829,1704424312758,-500.0,0.00038082,3]
[310258830,1704424312769,-2415.78,0.00038082,3]
[310258831,1704424312780,-558.41,0.00038082,3]
[310258832,1704424312789,-500.0,0.00038082,3]
[310258833,1704424312799,-500.0,0.00038082,3]
[310258834,1704424312808,-384.78277554,0.00038082,3]
[310258835,1704424312818,-500.0,0.00038082,3]
[310258836,1704424312828,-542.19,0.00038082,3]
[310258837,1704424312838,-500.0,0.00038082,3]
[310258838,1704424312847,-500.0,0.00038082,3]
[310258839,1704424312858,-1511.27,0.00038082,3]
[310258840,1704424312868,-500.0,0.00038082,3]
[310258841,1704424312880,-4392.23,0.00038082,3]
[310258842,1704424312890,-1318.19,0.00038082,3]
[310258843,1704424312900,-500.0,0.00038082,3]
[310258844,1704424312909,-568.349685,0.00038082,14]
[310258845,1704424312919,-157.40105,0.00038098,2]
[310258846,1704424312929,-156.99,0.0003812,7]
[310258847,1704424312941,-3353.0,0.0003814,20]
[310258848,1704424312953,-842.0,0.0003814,20]
[310258849,1704424312963,-370.0,0.0003814,20]
[310258850,1704424312973,-1000.0,0.00038148,10]
[310258851,1704424312983,-1000.0,0.00038148,10]
[310258852,1704424312993,-215.55,0.00038198,4]
[310258853,1704424313003,-1405.39,0.000382,7]
[310258854,1704424313013,-401.45854323,0.00038204,2]
[310258855,1704424313022,-151.88284777,0.00038205,7]
[310258856,1704424313031,-22405.74818629,0.00038205,60]
[310258857,1704424313040,-339.96664363,0.00038205,60]
[310258858,1704424313049,-1216.255,0.00038205,30]
[310258859,1704424313057,-154.0,0.00038205,120]
[310258860,1704424313066,-172.78470541,0.00038205,22]
[310258861,1704424313075,-151.77874977,0.00038205,120]
[310258862,1704424313085,-1389.57683304,0.00038205,30]
[310258863,1704424313094,-163.43990034,0.00038205,120]
[310258864,1704424313104,-316.95789106,0.00038205,120]
[310258865,1704424313113,-161.98078814,0.00038205,120]
[310258866,1704424313125,-1486.86188418,0.00038205,120]
[310258867,1704424313135,-361.78446413,0.00038205,30]
[310258868,1704424313144,-1064.0,0.00038205,30]
[310258869,1704424313154,-2048.261065,0.00038205,30]
[310258870,1704424313163,-304.531688,0.00038205,30]
[310258871,1704424313172,-9289.29206948,0.00038205,30]
[310258872,1704424313181,-1963.278674,0.00038205,30]
[310258873,1704424313190,-1000.0,0.00038253,2]
[310258874,1704424313200,-165.49169783,0.00038286,14]
[310258875,1704424313209,-157.40105,0.00038298,2]
[310258876,1704424313218,-8248.29,0.000383,7]
[310258877,1704424313228,-13965.33,0.000383,7]
[310258878,1704424313238,-2005.64,0.000383,2]
[310258879,1704424313248,-150.0,0.000383,27]
[310258880,1704424313258,-1308.6415487,0.00038313,10]
[310258881,1704424313267,-387.19141102,0.00038313,10]
[310258882,1704424313276,-1254.23291873,0.00038313,10]
[310258883,1704424313285,-2213.42643047,0.00038313,10]
[310258884,1704424313295,-1941.37769127,0.00038313,10]
[310258885,1704424313306,-401.45854323,0.00038328,2]
[310258886,1704424313315,-489.994873,0.0003833,2]
[310258887,1704424313325,-409.62,0.00038352,2]
[310258888,1704424313334,-180.69,0.00038356,2]
[310258889,1704424313345,-500.0,0.00038356,3]
[310258890,1704424313355,-1604.59309295,0.00038356,30]
[310258891,1704424313364,-760.75,0.00038356,3]
[310258892,1704424313374,-500.0,0.00038356,3]
[310258893,1704424313383,-500.0,0.00038356,3]
[310258894,1704424313392,-583.53,0.00038356,3]
[310258895,1704424313402,-500.0,0.00038356,3]
[310258896,1704424313411,-500.0,0.00038356,3]
[310258897,1704424313421,-500.0,0.00038356,3]
[310258898,1704424313430,-500.0,0.00038356,3]
[310258899,1704424313439,-669.12,0.00038356,3]
[310258900,1704424313448,-500.0,0.00038356,3]
[310258901,1704424313457,-500.0,0.00038356,3]
[310258902,1704424313467,-500.0,0.00038356,3]
[310258903,1704424313477,-500.0,0.00038356,3]
[310258904,1704424313486,-530.89,0.00038356,3]
[310258905,1704424313495,-500.0,0.00038356,3]
[310258906,1704424313504,-500.0,0.00038356,3]
[310258907,1704424313513,-500.0,0.00038356,3]
[310258908,1704424313522,-500.0,0.00038356,3]
[310258909,1704424313530,-500.0,0.00038356,3]
[310258910,1704424313539,-500.0,0.00038356,3]
[310258911,1704424313547,-500.0,0.00038356,3]
[310258912,1704424313555,-500.0,0.00038356,3]
[310258913,1704424313564,-500.0,0.00038356,3]
[310258914,1704424313574,-538.38920738,0.00038356,3]
[310258915,1704424313584,-500.0,0.00038356,3]
[310258916,1704424313595,-500.0,0.00038356,3]
[310258917,1704424313604,-500.0,0.00038356,3]
[310258918,1704424313613,-500.0,0.00038356,3]
[310258919,1704424313623,-500.0,0.00038356,3]
[310258920,1704424313633,-192.50945563,0.00038356,3]
[310258921,1704424313642,-500.0,0.00038356,3]
[310258922,1704424313652,-502.6875373,0.00038356,3]
[310258923,1704424313661,-500.0,0.00038356,3]
[310258924,1704424313671,-666.0,0.00038356,2]
[310258925,1704424313680,-458.44705886,0.00038356,3]
[310258926,1704424313690,-500.0,0.00038356,3]
[310258927,1704424313699,-500.0,0.00038356,3]
[310258928,1704424313709,-500.0,0.00038356,3]
[310258929,1704424313718,-500.0,0.00038356,3]
[310258930,1704424313728,-954.7,0.00038356,3]
[310258931,1704424313737,-500.0,0.00038356,3]
[310258932,1704424313747,-500.0,0.00038356,3]
[310258933,1704424313757,-500.0,0.00038356,3]
[310258934,1704424313766,-500.0,0.00038356,3]
[310258935,1704424313775,-500.0,0.00038356,3]
[310258936,1704424313784,-500.0,0.00038356,3]
[310258937,1704424313794,-500.0,0.00038356,3]
[310258938,1704424313803,-500.0,0.00038356,3]
[310258939,1704424313820,-500.0,0.00038356,3]
[310258940,1704424313830,-500.0,0.00038356,3]
[310258941,1704424313841,-544.75697834,0.00038356,3]
[310258942,1704424313850,-307.50739446,0.00038356,3]
[310258943,1704424313861,-500.0,0.00038356,3]
[310258944,1704424313870,-500.0,0.00038356,3]
[310258945,1704424313881,-874.14,0.00038356,3]
[310258946,1704424313890,-500.0,0.00038356,3]
[310258947,1704424313900,-500.0,0.00038356,3]
[310258948,1704424313909,-479.18245854,0.00038356,3]
[310258949,1704424313918,-323.60495197,0.00038356,3]
[310258950,1704424313928,-500.0,0.00038356,2]
[310258951,1704424313940,-500.0,0.00038356,3]
[310258952,1704424313954,-500.0,0.00038356,3]
[310258953,1704424313963,-245.84506241,0.00038356,3]
[310258954,1704424313972,-223.61027874,0.00038356,3]
[310258955,1704424314168,-539.97196298,0.00038356,3]
[310258956,1704424314178,-500.0,0.00038356,3]
[310258957,1704424314187,-500.0,0.00038356,3]
[310258958,1704424314196,-500.0,0.00038356,3]
[310258959,1704424314206,-202.84777627,0.00038356,3]
[310258960,1704424314215,-593.83,0.00038356,3]
[310258961,1704424314224,-3647.06,0.00038356,3]
[310258962,1704424314234,-523.05,0.00038356,3]
[310258963,1704424314244,-569.6,0.00038356,3]
[310258964,1704424314253,-500.0,0.00038356,3]
[310258965,1704424314264,-1578.13,0.00038356,3]
[310258966,1704424314273,-869.26,0.00038356,3]
[310258967,1704424314282,-601.34,0.00038356,3]
[310258968,1704424314292,-602.04,0.00038356,3]
[310258969,1704424314302,-500.0,0.00038356,3]
[310258970,1704424314311,-559.1,0.00038356,3]
[310258971,1704424314321,-539.46581134,0.00038356,3]
[310258972,1704424314331,-500.0,0.00038356,3]
[310258973,1704424314340,-500.0,0.00038356,3]
[310258974,1704424314350,-4769.97,0.00038356,3]
[310258975,1704424314359,-500.0,0.00038356,3]
[310258976,1704424314369,-565.17,0.00038356,3]
[310258977,1704424314380,-500.0,0.00038356,3]
[310258978,1704424314390,-2681.68,0.00038356,3]
[310258979,1704424314399,-3006.36,0.00038356,3]
[310258980,1704424314409,-774.17,0.00038356,3]
[310258981,1704424314419,-500.0,0.00038356,3]
[310258982,1704424314429,-500.0,0.00038356,3]
[310258983,1704424314438,-776.16,0.00038356,3]
[310258984,1704424314448,-1909.11,0.00038356,3]
[310258985,1704424314458,-1238.67,0.00038356,3]
[310258986,1704424314468,-529.17,0.00038356,3]
[310258987,1704424314477,-3090.15,0.00038356,3]
[310258988,1704424314487,-500.0,0.00038356,3]
[310258989,1704424314497,-5012.71,0.00038356,3]
[310258990,1704424314506,-500.0,0.00038356,3]
[310258991,1704424314516,-1857.63,0.00038356,3]
[310258992,1704424314525,-4528.66,0.00038356,3]
[310258993,1704424314535,-704.83,0.00038356,3]
[310258994,1704424314545,-685.03458536,0.00038356,3]
[310258995,1704424315018,-174.13,0.00027397,2]
[310258996,1704424315028,-174.13,0.00027556,2]
[310258997,1704424315039,-174.13,0.00027714,2]
[310258998,1704424315049,-174.13,0.00027872,2]
[310258999,1704424315059,-174.13,0.0002803,2]
[310259000,1704424315068,-241.82974948,0.00035616,3]
[310259001,1704424315078,-500.0,0.00035616,3]
[310259002,1704424315087,-500.0,0.0003589,3]
[310259003,1704424315097,-500.0,0.00036164,3]
[310259004,1704424315107,-500.0,0.00036164,3]
[310259005,1704424315117,-158.56875053,0.00036164,3]
[310259006,1704424315402,-174.13,0.00028189,2]
[310259007,1704424315411,-174.13,0.00028347,2]
[310259008,1704424315420,-174.13,0.00028505,2]
[310259009,1704424315429,-174.13,0.00028664,2]
[310259010,1704424315438,-174.13,0.00028822,2]
[310259011,1704424315448,-154.0,0.00032,2]
[310259012,1704424315457,-154.0,0.00032,2]
[310259013,1704424315466,-154.0,0.00032,2]
[310259014,1704424315476,-500.0,0.00035616,3]
[310259015,1704424315485,-505.20310867,0.00035616,3]
[310259016,1704424315494,-500.0,0.0003589,3]
[310259017,1704424315504,-341.43124947,0.00036164,3]
[310259018,1704424315514,-500.0,0.00036164,3]
[310259019,1704424315524,-500.0,0.00036438,3]
[310259020,1704424315533,-500.0,0.00036438,3]
[310259021,1704424315542,-500.0,0.00036438,3]
[310259022,1704424315551,-500.0,0.00036438,3]
[310259023,1704424315561,-500.0,0.00036712,3]
[310259024,1704424315570,-500.0,0.00036712,3]
[310259025,1704424315580,-500.0,0.00036712,3]
[310259026,1704424315589,-500.0,0.00036712,3]
[310259027,1704424315598,-500.0,0.00036986,3]
[310259028,1704424315607,-500.0,0.00036986,3]
[310259029,1704424315617,-500.0,0.00036986,3]
[310259030,1704424315628,-500.0,0.00036986,3]
[310259031,1704424315637,-500.0,0.0003726,3]
[310259032,1704424315646,-500.0,0.0003726,3]
[310259033,1704424315655,-500.0,0.0003726,3]
[310259034,1704424315663,-500.0,0.0003726,3]
[310259035,1704424315673,-868.93,0.00037534,3]
[310259036,1704424315682,-500.0,0.00037534,3]
[310259037,1704424315691,-500.0,0.00037534,3]
[310259038,1704424315700,-500.0,0.00037534,3]
[310259039,1704424315710,-868.93,0.00037808,3]
[310259040,1704424315719,-500.0,0.00037808,3]
[310259041,1704424315728,-500.0,0.00037808,3]
[310259042,1704424315738,-500.0,0.00037808,3]
[310259043,1704424315747,-868.93,0.00038082,3]
[310259044,1704424315757,-500.0,0.00038082,3]
[310259045,1704424315766,-500.0,0.00038082,3]
[310259046,1704424315775,-500.0,0.00038082,3]
[310259047,1704424315784,-1268.08541464,0.00038356,3]
[310259048,1704424315794,-2812.81,0.00038356,3]
[310259049,1704424315803,-778.9,0.00038356,3]
[310259050,1704424315815,-1569.53,0.00038356,3]
[310259051,1704424315826,-1388.55,0.00038356,3]
[310259052,1704424315835,-500.0,0.00038356,3]
[310259053,1704424315845,-538.37603457,0.00038356,3]
[310259054,1704424315855,-500.0,0.00038356,3]
[310259055,1704424315866,-971.61,0.00038356,3]
[310259056,1704424315877,-2118.07,0.00038356,3]
[310259057,1704424315886,-1026.23,0.00038356,3]
[310259058,1704424315895,-175.05373808,0.00038356,3]
[310259059,1704424315904,-528.77,0.00038356,3]
[310259060,1704424315913,-747.51,0.00038356,3]
[310259061,1704424315922,-500.0,0.00038356,3]
[310259062,1704424315931,-1256.48,0.00038356,3]
[310259063,1704424315941,-500.0,0.00038356,3]
[310259064,1704424315954,-1231.35,0.00038356,3]
[310259065,1704424315963,-2582.67,0.00038356,3]
[310259066,1704424315972,-1321.69,0.00038356,3]
[310259067,1704424315981,-985.31,0.00038356,3]
[310259068,1704424315990,-533.64341976,0.00038356,3]
[310259069,1704424315999,-804.83,0.00038356,3]
[310259070,1704424316008,-672.09,0.00038356,3]
[310259071,1704424316018,-500.0,0.00038356,3]
[310259072,1704424316027,-500.0,0.00038356,3]
[310259073,1704424316036,-1836.89,0.00038356,3]
[310259074,1704424316045,-604.16531517,0.00038356,3]
[310259075,1704424316054,-1010.49,0.00038356,3]
[310259076,1704424316063,-762.87,0.00038356,3]
[310259077,1704424316072,-500.0,0.00038356,3]
[310259078,1704424316082,-786.79,0.00038356,3]
[310259079,1704424316091,-5862.64,0.00038356,3]
[310259080,1704424316101,-1785.52,0.00038356,3]
[310259081,1704424316110,-934.12,0.00038356,3]
[310259082,1704424316119,-500.0,0.00038356,3]
[310259083,1704424316129,-912.64,0.00038356,3]
[310259084,1704424316138,-808.85,0.00038356,3]
[310259085,1704424316148,-882.36,0.00038356,3]
[310259086,1704424316157,-1259.24,0.00038356,3]
[310259087,1704424316166,-13869.62,0.00038356,3]
[310259088,1704424316175,-500.0,0.00038356,3]
[310259089,1704424316184,-500.0,0.00038356,3]
[310259090,1704424316193,-3101.88,0.00038356,3]
[310259091,1704424316202,-1091.42,0.00038356,3]
[310259092,1704424316211,-785.92,0.00038356,3]
[310259093,1704424316221,-586.04,0.00038356,3]
[310259094,1704424316230,-500.0,0.00038356,3]
[310259095,1704424316239,-1268.16,0.00038356,3]
[310259096,1704424316248,-1189.46,0.00038356,3]
[310259097,1704424316257,-606.27,0.00038356,3]
[310259098,1704424316266,-593.38,0.00038356,3]
[310259099,1704424316275,-1481.99,0.00038356,3]
[310259100,1704424316284,-280.10152332,0.00038356,3]
[310259101,1704424316293,-500.0,0.00038356,3]
[310259102,1704424316302,-1085.76,0.00038356,3]
[310259103,1704424316311,-1106.51,0.00038356,3]
[310259104,1704424316321,-500.0,0.00038356,3]
[310259105,1704424316331,-1351.81,0.00038356,3]
[310259106,1704424316340,-500.0,0.00038356,3]
[310259107,1704424316349,-500.0,0.00038356,3]
[310259108,1704424316359,-545.65,0.00038356,3]
[310259109,1704424316369,-765.09,0.00038356,3]
[310259110,1704424316379,-537.24,0.00038356,3]
[310259111,1704424316390,-1151.66,0.00038356,3]
[310259112,1704424316399,-500.0,0.00038356,3]
[310259113,1704424316408,-779.5,0.00038356,3]
[310259114,1704424316418,-1306.66,0.00038356,3]
[310259115,1704424316430,-572.88,0.00038356,3]
[310259116,1704424316439,-404.83321048,0.00038356,3]
[310259117,1704424316449,-180.57115323,0.00038356,3]
[310259118,1704424316458,-500.0,0.00038356,3]
[310259119,1704424316467,-8188.31,0.00038356,3]
[310259120,1704424316477,-500.0,0.00038356,3]
[310259121,1704424316488,-1063.95,0.00038356,3]
[310259122,1704424316498,-798.53,0.00038356,3]
[310259123,1704424316508,-528.36,0.00038356,3]
[310259124,1704424316518,-500.0,0.00038356,3]
[310259125,1704424316527,-920.16,0.00038356,3]
[310259126,1704424316537,-500.0,0.00038356,3]
[310259127,1704424316548,-500.0,0.00038356,3]
[310259128,1704424316557,-663.44,0.00038356,3]
[310259129,1704424316567,-1622.28,0.00038356,3]
[310259130,1704424316576,-711.28,0.00038356,3]
[310259131,1704424316585,-500.0,0.00038356,3]
[310259132,1704424316594,-500.0,0.00038356,3]
[310259133,1704424316603,-502.3,0.00038356,3]
[310259134,1704424316614,-2080.27,0.00038356,3]
[310259135,1704424316627,-835.35,0.00038356,3]
[310259136,1704424316637,-500.0,0.00038356,3]
[310259137,1704424316647,-500.0,0.00038356,3]
[310259138,1704424316658,-500.0,0.00038356,3]
[310259139,1704424316668,-2415.78,0.00038356,3]
[310259140,1704424316677,-558.41,0.00038356,3]
[310259141,1704424316687,-500.0,0.00038356,3]
[310259142,1704424316696,-500.0,0.00038356,3]
[310259143,1704424316705,-500.0,0.00038356,3]
[310259144,1704424316715,-542.19,0.00038356,3]
[310259145,1704424316725,-500.0,0.00038356,3]
[310259146,1704424316736,-500.0,0.00038356,3]
[310259147,1704424316746,-1511.27,0.00038356,3]
[310259148,1704424316757,-500.0,0.00038356,3]
[310259149,1704424316766,-4392.23,0.00038356,3]
[310259150,1704424316775,-1318.19,0.00038356,3]
[310259151,1704424316785,-487.0597053,0.00038356,3]
[310259152,1704424316794,-868.93,0.00038356,3]
[310259153,1704424316803,-500.0,0.00038356,3]
[310259154,1704424316812,-500.0,0.00038356,3]
[310259155,1704424316821,-500.0,0.00038356,3]
[310259156,1704424316830,-153.84,0.00038356,2]
[310259157,1704424316840,-968.77,0.00038356,14]
[310259158,1704424316849,-3972.8,0.0003836,2]
[310259159,1704424316858,-3972.8,0.0003836,2]
[310259160,1704424316867,-3972.8,0.0003836,2]
[310259161,1704424316876,-3972.8,0.0003836,2]
[310259162,1704424316885,-3972.8,0.0003836,2]
[310259163,1704424316894,-3972.8,0.0003836,2]
[310259164,1704424316904,-3972.8,0.0003836,2]
[310259165,1704424316914,-3972.8,0.0003836,2]
[310259166,1704424316923,-3972.8,0.0003836,2]
[310259167,1704424316934,-3972.8,0.0003836,2]
[310259168,1704424316943,-2000.0,0.000384,2]
[310259169,1704424316955,-561.144629,0.000384,2]
[310259170,1704424316964,-1554.53882616,0.000384,2]
[310259171,1704424316974,-1000.0,0.000384,2]
[310259172,1704424316982,-3000.0,0.000384,2]
[310259173,1704424316991,-500.0,0.000384,2]
[310259174,1704424317000,-500.0,0.000384,2]
[310259175,1704424317011,-1000.0,0.000384,2]
[310259176,1704424317020,-402.10505279,0.000384,2]
[310259177,1704424317029,-559.0,0.000384,2]
[310259178,1704424317038,-106140.08886152,0.00038411,2]
[310259179,1704424317048,-150.0,0.00038428,2]
[310259180,1704424317057,-401.45854323,0.00038452,2]
[310259181,1704424317066,-157.40105,0.00038498,2]
[310259182,1704424317075,-300.0,0.000385,13]
[310259183,1704424317085,-1015.2250948,0.000385,2]
[310259184,1704424317097,-1000.0,0.00038503,2]
[310259185,1704424317106,-3353.0,0.00038525,20]
[310259186,1704424317116,-201.29697395,0.00038525,20]
[310259187,1704424317128,-842.0,0.00038525,20]
[310259188,1704424317137,-370.0,0.00038525,20]
[310259189,1704424317147,-1777.01,0.00038545,5]
[310259190,1704424317156,-401.45854323,0.00038576,2]